DepartmentFamily,Entity,Date,ExpenseType,ExpenseArea,Supplier,PaymentNumber,InvoiceDistributionAmount,InvoiceLineDescription,SupplierPostCode,TransactionType
FOOD STANDARDS AGENCY - Westminster,FOOD STANDARDS AGENCY - Westminster,2016-08-01,EXP - PURCHASE OF GOODS/SERV-ICT OUTSOURC&MAINT/SUPP- IT SUPPORT SERVICES,IT Service Delivery,CAPITA SECURE INFORMATION SOLUTIONS LTD,1011700490,279190.83,CORE SERVICE CHARGE,SN14 0TW,ADMIN
FOOD STANDARDS AGENCY - Westminster,FOOD STANDARDS AGENCY - Westminster,2016-08-25,EXP - PURCHASE OF GOODS/SERV-ICT OUTSOURC&MAINT/SUPP- IT SUPPORT SERVICES,IT Service Delivery,CAPITA SECURE INFORMATION SOLUTIONS LTD,1011700725,279190.83,AUG2016 CORE SERVICE CHARGE,SN14 0TW,ADMIN
FOOD STANDARDS AGENCY - Westminster,FOOD STANDARDS AGENCY - Westminster,2016-08-23,EXP - PURCHASE OF GOODS/SERVICES - OTHER - PROGRAMME EXPENDITURE,Animal Feed     ,TRADING STANDARDS INSTITUTE (GRANTS),1011700695,189775.35,Feed Off. Conts 2016/17 Prog delivery (inland/ports). Feed Official Controls funding 2016/17: To deliver a programme of Official Controls (inland inspections/sampling & ports work) in 2016/17.,SS15 6TH,PROGRAMME
FOOD STANDARDS AGENCY - Westminster,FOOD STANDARDS AGENCY - Westminster,2016-08-17,EXP - PURCHASE OF GOODS/SERVICES - SHARED SERV OUTSRCG- CIVIL SERV PENSION ADMIN,Finance Director & Branch,LONDON PENSIONS FUND AUTHORITY,1011700642,149333,AUG 16 FUND VALUATION,EC3N 4LP,ADMIN
FOOD STANDARDS AGENCY - Westminster,FOOD STANDARDS AGENCY - Westminster,2016-08-17,EXP - PURCHASE OF GOODS/SERVICES - SHARED SERV OUTSRCG- CIVIL SERV PENSION ADMIN,Finance Director & Branch,LONDON PENSIONS FUND AUTHORITY,1011700642,149333,JULY 2016 FUND VALUATION,EC3N 4LP,ADMIN
FOOD STANDARDS AGENCY - Westminster,FOOD STANDARDS AGENCY - Westminster,2016-08-12,EXP - PURCHASE OF GOODS/SERVICES - OTHER - PROGRAMME EXPENDITURE,Analysis & Research Branch,NATIONAL CENTRE FOR SOCIAL RESEARCH,1011700610,145955,P11949.00,EC1V 0AX,PROGRAMME
FOOD STANDARDS AGENCY - Westminster,FOOD STANDARDS AGENCY - Westminster,2016-08-23,EXP - PURCHASE OF GOODS/SERVICES - OTHER - PROGRAMME EXPENDITURE,Animal Feed     ,TRADING STANDARDS INSTITUTE (GRANTS),1011700695,132123.58,Feed Off. Conts 2016/17 Prog delivery (FH@PP). Feed Official Controls funding 2016/17: To deliver a programme of Official Controls (Food Hygiene at Primary Production) in 2016/17.,SS15 6TH,PROGRAMME
FOOD STANDARDS AGENCY - Westminster,FOOD STANDARDS AGENCY - Westminster,2016-08-04,EXP - PURCHASE OF GOODS/SERVICES - ACCOMMODATION & BLDNG MANAGEMENT - CILOR,Security & Estates,LONDON BOROUGH OF CAMDEN,1011700525,105468,BUSINESS RATES,WC1H 8EQ,ADMIN
FOOD STANDARDS AGENCY - Westminster,FOOD STANDARDS AGENCY - Westminster,2016-08-26,EXP - PURCHASE OF GOODS/SERVICES - OTHER - PROGRAMME EXPENDITURE,Chemical Risk Assessment Unit,PUBLIC HEALTH ENGLAND,2012700042,88234.06,FS516010,SP4 0JG,PROGRAMME
FOOD STANDARDS AGENCY - Westminster,FOOD STANDARDS AGENCY - Westminster,2016-08-05,EXP - PURCHASE OF GOODS/SERVICES - OTHER - PROGRAMME EXPENDITURE,Food Production Branch,ANIMAL AND PLANT HEALTH AGENCY,2012700033,71163.45,COMPLETION OF STUDY DESIGN,KT15 3NB,PROGRAMME
FOOD STANDARDS AGENCY - Westminster,FOOD STANDARDS AGENCY - Westminster,2016-08-19,EXP - PURCHASE OF GOODS/SERVICES - OTHER,Food Production Branch,MEDICAL RESEARCH COUNCIL,2012700038,70000,G1100799/1,SN2 1ET,ADMIN
FOOD STANDARDS AGENCY - Westminster,FOOD STANDARDS AGENCY - Westminster,2016-08-19,EXP - PURCHASE OF GOODS/SERVICES - OTHER - PROGRAMME EXPENDITURE,Contaminants HoD,C E F A S,2012700039,69649.85,INVOICE FOR JULY 2016,NR33 0HT,PROGRAMME
FOOD STANDARDS AGENCY - Westminster,FOOD STANDARDS AGENCY - Westminster,2016-08-25,EXP - PURCHASE OF GOODS/SERVICES - OTHER - PROGRAMME EXPENDITURE,Food Incidents & Resilience - Prog,ANIMAL AND PLANT HEALTH AGENCY,1011700716,50380,PO 422255 REPORTABLE DISEASE,KT15 3NB,PROGRAMME
FOOD STANDARDS AGENCY - Westminster,FOOD STANDARDS AGENCY - Westminster,2016-08-01,EXP - PURCHASE OF GOODS/SERVICES - OTHER - PROGRAMME EXPENDITURE,Chief Scientist,MACLAREN WEST LTD,1011700493,46300,FINAL PAYMENT FOR UKFSS,G68 9JS,PROGRAMME
FOOD STANDARDS AGENCY - Westminster,FOOD STANDARDS AGENCY - Westminster,2016-08-04,EXP - PURCHASE OF GOODS/SERVICES - OTHER PROFESSIONAL SERVICES,Regulating our Future,T N S UK LTD,1011700520,39069,ROF - Consumer insight work with the public and small business about early blueprints for a future regulatory model.,SE1 2QY,ADMIN
FOOD STANDARDS AGENCY - Westminster,FOOD STANDARDS AGENCY - Westminster,2016-08-23,EXP - PURCHASE OF GOODS/SERVICES - OTHER - PROGRAMME EXPENDITURE,Animal Feed     ,TRADING STANDARDS INSTITUTE (GRANTS),1011700695,32210,Feed Off. Conts 2016/17 NTS/TSI fees. Feed Official Controls funding 2016/17: NTS/TSI fees,SS15 6TH,PROGRAMME
FOOD STANDARDS AGENCY - Westminster,FOOD STANDARDS AGENCY - Westminster,2016-08-31,EXP - PURCHASE OF GOODS/SERVICES - OTHER - PROGRAMME EXPENDITURE,Operations Local Delivery ,C E F A S,2012700044,31950.8,SHELLFISH SAMPLE ANALYSIS,NR33 0HT,PROGRAMME
FOOD STANDARDS AGENCY - Westminster,FOOD STANDARDS AGENCY - Westminster,2016-08-26,EXP - AMORTISATION - INTANGIBLE ASSETS,IT Strategy,CAPITA SECURE INFORMATION SOLUTIONS LTD,1011700738,29908.8,RSA REPLACEMENT,SN14 0TW,ADMIN
FOOD STANDARDS AGENCY - Westminster,FOOD STANDARDS AGENCY - Westminster,2016-08-03,EXP - PURCHASE OF GOODS/SERVICES - OTHER - PROGRAMME EXPENDITURE,Microbiological Food Safety Branch,UNIVERSITY OF LIVERPOOL,1011700516,29548,NOROVIRUS ATTRIBUTION STUDY,L69 7ZX,PROGRAMME
FOOD STANDARDS AGENCY - Westminster,FOOD STANDARDS AGENCY - Westminster,2016-08-18,EXP - PURCHASE OF GOODS/SERVICES - ACCOMM & BLDNG MGMT - SHARED SITE RECHARGE,Security & Estates,G4S FACILITIES MANAGEMENT UK LTD,1011700648,28299.76,G4S INVOICE 90130583 - CONTRACT CHARGES - AUGUST 2016,S81 7QF,ADMIN
FOOD STANDARDS AGENCY - Westminster,FOOD STANDARDS AGENCY - Westminster,2016-08-10,EXP - PURCHASE OF GOODS/SERVICES - OTHER ENERGY/UTILITIES/WASTE COST,Security & Estates,EDF ENERGY PLC,1011700571,27768.03,INV 1949442 JUL16,EX1 3UT,ADMIN
FOOD STANDARDS AGENCY - Westminster,FOOD STANDARDS AGENCY - Westminster,2016-08-01,EXP - PURCHASE OF GOODS/SERVICES - OTHER - LAUNDRY,Operational Delivery,APPARELMASTER UK LTD,1011700492,25597.55,REGION 546 MEW CONTRACT,PR2 9ZD,PROGRAMME
FOOD STANDARDS AGENCY - Westminster,FOOD STANDARDS AGENCY - Westminster,2016-08-03,EXP - PURCHASE OF GOODS/SERVICES - OTHER - PROGRAMME EXPENDITURE,Microbiological Food Safety Branch,UNIVERSITY OF LIVERPOOL,1011700516,23741,NOROVIRUS ATTRIBUTION STUDY,L69 7ZX,PROGRAMME
FOOD STANDARDS AGENCY - Westminster,FOOD STANDARDS AGENCY - Westminster,2016-08-22,EXP - PURCHASE OF GOODS/SERV-ICT OUTSOURC&MAINT/SUPP- IT SUPPORT SERVICES,Finance Director & Branch,SHARED SERVICES CONNECTED LTD,1011700681,23335.37,SERVICES BETWEEN 01/08/2016 & 31/08/2016,HP2 7AH,ADMIN
FOOD STANDARDS AGENCY - Westminster,FOOD STANDARDS AGENCY - Westminster,2016-08-31,EXP - PURCHASE OF GOODS/SERVICES - OTHER - PROGRAMME EXPENDITURE,Operations Local Delivery ,C E F A S,2012700044,22526.56,SHELLFISH SAMPLE ANALYSIS,NR33 0HT,PROGRAMME
FOOD STANDARDS AGENCY - Westminster,FOOD STANDARDS AGENCY - Westminster,2016-08-31,EXP - PURCHASE OF GOODS/SERVICES - OTHER - PROGRAMME EXPENDITURE,Operations Local Delivery ,C E F A S,2012700044,20652.32,SHELLFISH SAMPLE ANALYSIS,NR33 0HT,PROGRAMME
FOOD STANDARDS AGENCY - Westminster,FOOD STANDARDS AGENCY - Westminster,2016-08-02,EXP - PURCHASE OF GOODS/SERVICES - OTHER - LAUNDRY,Operational Delivery,APPARELMASTER UK LTD,1011700505,20596.77,NET USEAGE AND RENTAL,PR2 9ZD,PROGRAMME
FOOD STANDARDS AGENCY - Westminster,FOOD STANDARDS AGENCY - Westminster,2016-08-02,EXP - PURCHASE OF GOODS/SERVICES - OTHER - LAUNDRY,Operational Delivery,APPARELMASTER UK LTD,1011700505,20513.73,546 NEW CONTRACT,PR2 9ZD,PROGRAMME
FOOD STANDARDS AGENCY - Westminster,FOOD STANDARDS AGENCY - Westminster,2016-08-04,EXP - PURCHASE OF GOODS/SERVICES - OTHER PROFESSIONAL SERVICES,Regulating our Future,T N S UK LTD,1011700520,19534.5,ROF - Consumer insight work with the public and small business about early blueprints for a future regulatory model.,SE1 2QY,ADMIN
FOOD STANDARDS AGENCY - Westminster,FOOD STANDARDS AGENCY - Westminster,2016-08-11,EXP - PERMANENT UK STAFF - BONUSES - ADMIN,Directorate Support Unit,UNIVERSITY OF SOUTHAMPTON,1011700597,19462.35,SECONDMENT ,SO17 1BJ,ADMIN
FOOD STANDARDS AGENCY - Westminster,FOOD STANDARDS AGENCY - Westminster,2016-08-11,EXP - PERMANENT UK STAFF - BONUSES - ADMIN,Directorate Support Unit,UNIVERSITY OF SOUTHAMPTON,1011700597,19172.33,SECONDMENT ,SO17 1BJ,ADMIN
FOOD STANDARDS AGENCY - Westminster,FOOD STANDARDS AGENCY - Westminster,2016-08-02,EXP - RENTALS UNDER NON PFI OPERATING LEASES  -OTHER RENTAL- RENT OUTSIDE LONDON,Security & Estates,DEFRA C/O CAPITA,1011700509,18081.62,CAPITA INV. 100254/9366,EC2V 7NQ,ADMIN
FOOD STANDARDS AGENCY - Westminster,FOOD STANDARDS AGENCY - Westminster,2016-08-18,EXP - PURCHASE OF GOODS/SERVICES - OTHER FACILTIES COSTS - SECURITY,Security & Estates,G4S FACILITIES MANAGEMENT UK LTD,1011700648,17155.2,G4S INVOICE 90130583 - CONTRACT CHARGES - AUGUST 2016,S81 7QF,ADMIN
FOOD STANDARDS AGENCY - Westminster,FOOD STANDARDS AGENCY - Westminster,2016-08-18,EXP - PURCHASE OF GOODS/SERVICES - ACCOMM & BLDNG MGMT - SHARED SITE RECHARGE,Security & Estates,G4S FACILITIES MANAGEMENT UK LTD,1011700648,16938.25,G4S INVOICE 90130583 - CONTRACT CHARGES - AUGUST 2016,S81 7QF,ADMIN
FOOD STANDARDS AGENCY - Westminster,FOOD STANDARDS AGENCY - Westminster,2016-08-31,EXP - PURCHASE OF GOODS/SERVICES - OTHER - PROGRAMME EXPENDITURE,Operations Local Delivery ,C E F A S,2012700044,16497.98,SHELLFISH SAMPLE ANALYSIS,NR33 0HT,PROGRAMME
FOOD STANDARDS AGENCY - Westminster,FOOD STANDARDS AGENCY - Westminster,2016-08-16,EXP - PURCHASE OF GOODS/SERVICES - OTHER - CARRIAGE OF SAMPLES,Operational Delivery,TOPSPEED COURIERS LIMITED,1011700629,15997.5,DIM X 354 RIM BLOOD X61 BOX RETURNS X 47,WA16 8XN,PROGRAMME
FOOD STANDARDS AGENCY - Westminster,FOOD STANDARDS AGENCY - Westminster,2016-08-02,EXP - AMORTISATION - INTANGIBLE ASSETS,IT Strategy,CAPITA SECURE INFORMATION SOLUTIONS LTD,1011700503,15722.42,PSN EXCHANGE,SN14 0TW,ADMIN
FOOD STANDARDS AGENCY - Westminster,FOOD STANDARDS AGENCY - Westminster,2016-08-31,EXP - PURCHASE OF GOODS/SERVICES - OTHER - PROGRAMME EXPENDITURE,Operations Local Delivery ,C E F A S,2012700044,15386,SHELLFISH SAMPLE ANALYSIS,NR33 0HT,PROGRAMME
FOOD STANDARDS AGENCY - Westminster,FOOD STANDARDS AGENCY - Westminster,2016-08-16,"EXP - PURCHASE OF GOODS/SERVICES - TRICHINELLA TESTING, CARRIAGE & CONSUMABLES",Operational Delivery,TOPSPEED COURIERS LIMITED,1011700629,14805,TRICH X329,WA16 8XN,PROGRAMME
FOOD STANDARDS AGENCY - Westminster,FOOD STANDARDS AGENCY - Westminster,2016-08-17,EXP - PURCHASE OF GOODS/SERV-ICT OUTSOURC&MAINT/SUPP- IT SUPPORT SERVICES,IT Service Delivery,CAPITA SECURE INFORMATION SOLUTIONS LTD,1011700640,11249.8,VOIP CALL CHARES APR MAY 2016,SN14 0TW,ADMIN
FOOD STANDARDS AGENCY - Westminster,FOOD STANDARDS AGENCY - Westminster,2016-08-02,EXP - PURCHASE OF GOODS/SERVICES - ACCOMM & BLDNG MGMT - SHARED SITE RECHARGE,Security & Estates,DEFRA C/O CAPITA,1011700509,10224.88,CAPITA INV. 100254/9242,EC2V 7NQ,ADMIN
FOOD STANDARDS AGENCY - Westminster,FOOD STANDARDS AGENCY - Westminster,2016-08-02,EXP - PURCHASE OF GOODS/SERVICES - ACCOMM & BLDNG MGMT - SHARED SITE RECHARGE,Security & Estates,DEFRA C/O CAPITA,1011700509,10224.88,CAPITA INV. 100254/9266,EC2V 7NQ,ADMIN
FOOD STANDARDS AGENCY - Westminster,FOOD STANDARDS AGENCY - Westminster,2016-08-23,EXP - PERMANENT UK STAFF - EMPLOYER'S SOCIAL SECURITY COSTS -OFFICE BASED,Finance Director & Branch,H M REVENUE & CUSTOMS,1011700692,9872.49,CLASS 1A NICS 948PW000028261613,BD98 8AA,ADMIN
FOOD STANDARDS AGENCY - Westminster,FOOD STANDARDS AGENCY - Westminster,2016-08-18,EXP - PURCHASE OF GOODS/SERVICES - ACCOMM & BLDNG MGMT - SHARED SITE RECHARGE,Security & Estates,G4S FACILITIES MANAGEMENT UK LTD,1011700648,9047.6,G4S INVOICE 90130583 - CONTRACT CHARGES - AUGUST 2016,S81 7QF,ADMIN
FOOD STANDARDS AGENCY - Westminster,FOOD STANDARDS AGENCY - Westminster,2016-08-23,EXP - PERMANENT UK STAFF - BASIC SALARY - BOARD,Chair & Deputy Chair,H M REVENUE & CUSTOMS,1011700692,8102.17,15-16 XP007167040698,BD98 8AA,ADMIN
FOOD STANDARDS AGENCY - Westminster,FOOD STANDARDS AGENCY - Westminster,2016-08-16,EXP - PURCHASE OF GOODS/SERVICES - OTHER - CARRIAGE OF SAMPLES,Operational Delivery,TOPSPEED COURIERS LIMITED,1011700629,7820,TB PROJECT X60 TB RED MEAT X80 TB DNA X12,WA16 8XN,PROGRAMME
FOOD STANDARDS AGENCY - Westminster,FOOD STANDARDS AGENCY - Westminster,2016-08-01,EXP - PURCHASE OF GOODS/SERVICES - OTHER - PROGRAMME EXPENDITURE,Chief Scientist,MACLAREN WEST LTD,1011700493,6300,SUPPORT FOR LABORTARIES,G68 9JS,PROGRAMME
FOOD STANDARDS AGENCY - Westminster,FOOD STANDARDS AGENCY - Westminster,2016-08-26,EXP - AMORTISATION - INTANGIBLE ASSETS,IT Strategy,CAPITA SECURE INFORMATION SOLUTIONS LTD,1011700738,6198.72,RSA REPLACEMENT,SN14 0TW,ADMIN
FOOD STANDARDS AGENCY - Westminster,FOOD STANDARDS AGENCY - Westminster,2016-08-02,EXP - AMORTISATION - INTANGIBLE ASSETS,IT Strategy,CAPITA SECURE INFORMATION SOLUTIONS LTD,1011700503,5925.96,GOOD COLLOBORATION SUITE,SN14 0TW,ADMIN
FOOD STANDARDS AGENCY - Westminster,FOOD STANDARDS AGENCY - Westminster,2016-08-03,EXP - PURCHASE OF GOODS/SERVICES - OTHER - PROGRAMME EXPENDITURE,Microbiological Food Safety Branch,UNIVERSITY OF LIVERPOOL,1011700516,5909.6,NOROVIRUS ATTRIBUTION STUDY,L69 7ZX,PROGRAMME
FOOD STANDARDS AGENCY - Westminster,FOOD STANDARDS AGENCY - Westminster,2016-08-02,EXP - PURCHASE OF GOODS/SERVICES - OTHER ICT COSTS - IT DEVELOPMENT,IT Strategy,CAPITA SECURE INFORMATION SOLUTIONS LTD,1011700503,5663.79,INFRASTRCUTRE CONVERGENCE OPTIONS,SN14 0TW,ADMIN
FOOD STANDARDS AGENCY - Westminster,FOOD STANDARDS AGENCY - Westminster,2016-08-10,EXP - PURCHASE OF GOODS/SERVICES - OTHER ENERGY/UTILITIES/WASTE COST,Security & Estates,EDF ENERGY PLC,1011700571,5549.07,INV 1949442 JUL16,EX1 3UT,ADMIN
FOOD STANDARDS AGENCY - Westminster,FOOD STANDARDS AGENCY - Westminster,2016-08-17,EXP - PURCHASE OF GOODS/SERV-ICT OUTSOURC&MAINT/SUPP- IT SUPPORT SERVICES,IT Service Delivery,CAPITA SECURE INFORMATION SOLUTIONS LTD,1011700640,5491.08,VOIP CALL CHARGES APR JUN2016,SN14 0TW,ADMIN
FOOD STANDARDS AGENCY - Westminster,FOOD STANDARDS AGENCY - Westminster,2016-08-02,EXP - AMORTISATION - INTANGIBLE ASSETS,Operations Assurance ,CAPITA SECURE INFORMATION SOLUTIONS LTD,1011700503,5223.6,SIR APPLICATION SERVER MIGRATION,SN14 0TW,PROGRAMME
FOOD STANDARDS AGENCY - Westminster,FOOD STANDARDS AGENCY - Westminster,2016-08-02,EXP - PURCHASE OF GOODS/SERVICES - OTHER ICT COSTS - IT DEVELOPMENT,IT Strategy,CAPITA SECURE INFORMATION SOLUTIONS LTD,1011700503,5000,NEW SOTRAGE FOR ARK DMZ YEAR 1,SN14 0TW,ADMIN
FOOD STANDARDS AGENCY - Westminster,FOOD STANDARDS AGENCY - Westminster,2016-08-23,EXP - PERMANENT UK STAFF - EMPLOYER'S SOCIAL SECURITY COSTS -OFFICE BASED,Finance Director & Branch,H M REVENUE & CUSTOMS,1011700692,4971.49,CLASS 1A NIC 948PV000028251613,BD98 8AA,ADMIN
FOOD STANDARDS AGENCY - Westminster,FOOD STANDARDS AGENCY - Westminster,2016-08-26,EXP - AMORTISATION - INTANGIBLE ASSETS,IT Strategy,CAPITA SECURE INFORMATION SOLUTIONS LTD,1011700738,4219,RSA REPLACEMENT,SN14 0TW,ADMIN
FOOD STANDARDS AGENCY - Westminster,FOOD STANDARDS AGENCY - Westminster,2016-08-02,EXP - AMORTISATION - INTANGIBLE ASSETS,IT Strategy,CAPITA SECURE INFORMATION SOLUTIONS LTD,1011700503,3510.2,SCCM Addition to Branch Office Upgrade Project - T&M Proposal,SN14 0TW,ADMIN
FOOD STANDARDS AGENCY - Westminster,FOOD STANDARDS AGENCY - Westminster,2016-08-01,EXP - PURCHASE OF GOODS/SERVICES - ICT OUTSOURCING & MAINT/SUPPORT,IT Service Delivery,CAPITA SECURE INFORMATION SOLUTIONS LTD,1011700490,3492,YORK POWER DOWN,SN14 0TW,ADMIN
FOOD STANDARDS AGENCY - Westminster,FOOD STANDARDS AGENCY - Westminster,2016-08-18,EXP - PURCHASE OF GOODS/SERVICES - OTHER FACILTIES COSTS - SECURITY,Security & Estates,G4S FACILITIES MANAGEMENT UK LTD,1011700648,3431.04,G4S INVOICE 90130583 - CONTRACT CHARGES - AUGUST 2016,S81 7QF,ADMIN
FOOD STANDARDS AGENCY - Westminster,FOOD STANDARDS AGENCY - Westminster,2016-08-17,EXP - PURCHASE OF GOODS/SERVICES - OTHER ICT COSTS - COMPUTER HARDWARE,IT Service Delivery,CAPITA SECURE INFORMATION SOLUTIONS LTD,1011700640,3290.88,FHRS CPU ENHANCED UTILISATION TO AUG 2016,SN14 0TW,ADMIN
FOOD STANDARDS AGENCY - Westminster,FOOD STANDARDS AGENCY - Westminster,2016-08-17,EXP - PURCHASE OF GOODS/SERV-ICT OUTSOURC&MAINT/SUPP- IT SUPPORT SERVICES,IT Service Delivery,CAPITA SECURE INFORMATION SOLUTIONS LTD,1011700640,3290.88,FHRS ENHANCED CPU UTILISAION TO JUL16,SN14 0TW,ADMIN
FOOD STANDARDS AGENCY - Westminster,FOOD STANDARDS AGENCY - Westminster,2016-08-03,EXP - PURCHASE OF GOODS/SERVICES - SUBSISTENCE,Operations Local Delivery ,REDFERN TRAVEL LTD,1011700511,3190.27,TRAVEL FOR WEEK 2016-30,BD1 5HQ,ADMIN
FOOD STANDARDS AGENCY - Westminster,FOOD STANDARDS AGENCY - Westminster,2016-08-02,EXP - AMORTISATION - INTANGIBLE ASSETS,IT Strategy,CAPITA SECURE INFORMATION SOLUTIONS LTD,1011700503,3144.48,PSN EXCHANGE,SN14 0TW,ADMIN
FOOD STANDARDS AGENCY - Westminster,FOOD STANDARDS AGENCY - Westminster,2016-08-23,EXP - PERMANENT UK STAFF - EMPLOYER'S SOCIAL SECURITY COSTS - BOARD,Chair & Deputy Chair,H M REVENUE & CUSTOMS,1011700692,3090.48,PAYE SETTLEMENT 15-16 XP007167040698,BD98 8AA,ADMIN
FOOD STANDARDS AGENCY - Westminster,FOOD STANDARDS AGENCY - Westminster,2016-08-01,EXP - AMORTISATION - INTANGIBLE ASSETS,IT Strategy,CAPITA SECURE INFORMATION SOLUTIONS LTD,1011700490,2536.56,CITRIX UPGRADE,SN14 0TW,ADMIN
FOOD STANDARDS AGENCY - Westminster,FOOD STANDARDS AGENCY - Westminster,2016-08-17,EXP - PURCHASE OF GOODS/SERV-ICT OUTSOURC&MAINT/SUPP- IT SUPPORT SERVICES,IT Service Delivery,CAPITA SECURE INFORMATION SOLUTIONS LTD,1011700640,2249.96,VOIP CALL CHARES APR MAY 2016,SN14 0TW,ADMIN
FOOD STANDARDS AGENCY - Westminster,FOOD STANDARDS AGENCY - Westminster,2016-08-03,EXP - PURCHASE OF GOODS/SERVICES - RAIL TRAVEL,Operations Local Delivery ,REDFERN TRAVEL LTD,1011700511,2234.5,TRAVEL FOR WEEK 2016-30,BD1 5HQ,ADMIN
FOOD STANDARDS AGENCY - Westminster,FOOD STANDARDS AGENCY - Westminster,2016-08-01,EXP - PURCHASE OF GOODS/SERVICES - OTHER - PROGRAMME EXPENDITURE,Operations Local Delivery ,CAPITA SECURE INFORMATION SOLUTIONS LTD,1011700490,2165.22,FHRS OOH SUPPORT,SN14 0TW,PROGRAMME
FOOD STANDARDS AGENCY - Westminster,FOOD STANDARDS AGENCY - Westminster,2016-08-18,EXP - PURCHASE OF GOODS/SERVICES - ACCOMM & BLDNG MGMT - SHARED SITE RECHARGE,Security & Estates,G4S FACILITIES MANAGEMENT UK LTD,1011700648,1919.16,G4S INVOICE 90130582 - PERFORMANCE REALTED - AUG 2016,S81 7QF,ADMIN
FOOD STANDARDS AGENCY - Westminster,FOOD STANDARDS AGENCY - Westminster,2016-08-03,EXP - PURCHASE OF GOODS/SERVICES - RAIL TRAVEL,Finance Director & Branch,REDFERN TRAVEL LTD,1011700511,1786,TRAVEL FOR WEEK 2016-30,BD1 5HQ,ADMIN
FOOD STANDARDS AGENCY - Westminster,FOOD STANDARDS AGENCY - Westminster,2016-08-16,EXP - PURCHASE OF GOODS/SERVICES - OTHER - CARRIAGE OF SAMPLES,Operational Delivery,TOPSPEED COURIERS LIMITED,1011700629,1755,CAMPY X39,WA16 8XN,PROGRAMME
FOOD STANDARDS AGENCY - Westminster,FOOD STANDARDS AGENCY - Westminster,2016-08-03,EXP - PURCHASE OF GOODS/SERVICES - SUBSISTENCE,Chair & Deputy Chair,REDFERN TRAVEL LTD,1011700511,1718.33,TRAVEL FOR WEEK 2016-30,BD1 5HQ,ADMIN
FOOD STANDARDS AGENCY - Westminster,FOOD STANDARDS AGENCY - Westminster,2016-08-03,EXP - PURCHASE OF GOODS/SERVICES - RAIL TRAVEL,Operational Delivery,REDFERN TRAVEL LTD,1011700511,1516.7,TRAVEL FOR WEEK 2016-30,BD1 5HQ,PROGRAMME
FOOD STANDARDS AGENCY - Westminster,FOOD STANDARDS AGENCY - Westminster,2016-08-17,EXP - PURCHASE OF GOODS/SERVICES - ICT OUTSOURCING & MAINT/SUPPORT,IT Service Delivery,CAPITA SECURE INFORMATION SOLUTIONS LTD,1011700640,1459.5,FSA BELFAST DISPOSAL,SN14 0TW,ADMIN
FOOD STANDARDS AGENCY - Westminster,FOOD STANDARDS AGENCY - Westminster,2016-08-02,EXP - AMORTISATION - INTANGIBLE ASSETS,IT Strategy,CAPITA SECURE INFORMATION SOLUTIONS LTD,1011700503,1431.6,SCCM Upgrade - Expenses,SN14 0TW,ADMIN
FOOD STANDARDS AGENCY - Westminster,FOOD STANDARDS AGENCY - Westminster,2016-08-03,EXP - PURCHASE OF GOODS/SERVICES - RAIL TRAVEL,Operations Assurance ,REDFERN TRAVEL LTD,1011700511,1382,TRAVEL FOR WEEK 2016-30,BD1 5HQ,PROGRAMME
FOOD STANDARDS AGENCY - Westminster,FOOD STANDARDS AGENCY - Westminster,2016-08-03,EXP - PURCHASE OF GOODS/SERVICES - SUBSISTENCE,Operational Delivery,REDFERN TRAVEL LTD,1011700511,1324.33,TRAVEL FOR WEEK 2016-30,BD1 5HQ,PROGRAMME
FOOD STANDARDS AGENCY - Westminster,FOOD STANDARDS AGENCY - Westminster,2016-08-02,EXP - AMORTISATION - INTANGIBLE ASSETS,IT Strategy,CAPITA SECURE INFORMATION SOLUTIONS LTD,1011700503,1185.19,GOOD COLLOBORATION SUITE,SN14 0TW,ADMIN
FOOD STANDARDS AGENCY - Westminster,FOOD STANDARDS AGENCY - Westminster,2016-08-18,EXP - PURCHASE OF GOODS/SERVICES - ACCOMM & BLDNG MGMT - SHARED SITE RECHARGE,Security & Estates,G4S FACILITIES MANAGEMENT UK LTD,1011700648,1164.89,G4S INVOICE 90130582 - PERFORMANCE REALTED - AUG 2016,S81 7QF,ADMIN
FOOD STANDARDS AGENCY - Westminster,FOOD STANDARDS AGENCY - Westminster,2016-08-18,EXP - PURCHASE OF GOODS/SERVICES - OTHER FACILTIES COSTS - SECURITY,Security & Estates,G4S FACILITIES MANAGEMENT UK LTD,1011700648,1163.39,G4S INVOICE 90130582 - PERFORMANCE REALTED - AUG 2016,S81 7QF,ADMIN
FOOD STANDARDS AGENCY - Westminster,FOOD STANDARDS AGENCY - Westminster,2016-08-02,EXP - PURCHASE OF GOODS/SERVICES - OTHER ICT COSTS - IT DEVELOPMENT,IT Strategy,CAPITA SECURE INFORMATION SOLUTIONS LTD,1011700503,1132.76,INFRASTRCUTRE CONVERGENCE OPTIONS,SN14 0TW,ADMIN
FOOD STANDARDS AGENCY - Westminster,FOOD STANDARDS AGENCY - Westminster,2016-08-26,EXP - AMORTISATION - INTANGIBLE ASSETS,IT Strategy,CAPITA SECURE INFORMATION SOLUTIONS LTD,1011700738,1084.8,RSA REPLACEMENT,SN14 0TW,ADMIN
FOOD STANDARDS AGENCY - Westminster,FOOD STANDARDS AGENCY - Westminster,2016-08-03,EXP - PURCHASE OF GOODS/SERVICES - SUBSISTENCE,Operations Assurance ,REDFERN TRAVEL LTD,1011700511,1046.19,TRAVEL FOR WEEK 2016-30,BD1 5HQ,PROGRAMME
FOOD STANDARDS AGENCY - Westminster,FOOD STANDARDS AGENCY - Westminster,2016-08-02,EXP - AMORTISATION - INTANGIBLE ASSETS,Operations Assurance ,CAPITA SECURE INFORMATION SOLUTIONS LTD,1011700503,1044.72,SIR APPLICATION SERVER MIGRATION,SN14 0TW,PROGRAMME
FOOD STANDARDS AGENCY - Westminster,FOOD STANDARDS AGENCY - Westminster,2016-08-17,EXP - PURCHASE OF GOODS/SERVICES - ICT OUTSOURCING & MAINT/SUPPORT,IT Service Delivery,CAPITA SECURE INFORMATION SOLUTIONS LTD,1011700640,939.8,FSA YORK DISPOSAL,SN14 0TW,ADMIN
FOOD STANDARDS AGENCY - Westminster,FOOD STANDARDS AGENCY - Westminster,2016-08-03,EXP - PURCHASE OF GOODS/SERVICES - RAIL TRAVEL,Chief Executive & Private Office,REDFERN TRAVEL LTD,1011700511,919.9,TRAVEL FOR WEEK 2016-30,BD1 5HQ,ADMIN
FOOD STANDARDS AGENCY - Westminster,FOOD STANDARDS AGENCY - Westminster,2016-08-01,EXP - PURCHASE OF GOODS/SERVICES - OTHER ICT COSTS - COMPUTER SOFTWARE,IT Service Delivery,CAPITA SECURE INFORMATION SOLUTIONS LTD,1011700490,918.6,CLPG Acrobat Pro DC (perpetual) 2015 Multiple Platforms International English Full License,SN14 0TW,ADMIN
FOOD STANDARDS AGENCY - Westminster,FOOD STANDARDS AGENCY - Westminster,2016-08-01,EXP - PURCHASE OF GOODS/SERVICES - ICT OUTSOURCING & MAINT/SUPPORT,IT Service Delivery,CAPITA SECURE INFORMATION SOLUTIONS LTD,1011700490,879.8,YORK POWER DOWN,SN14 0TW,ADMIN
FOOD STANDARDS AGENCY - Westminster,FOOD STANDARDS AGENCY - Westminster,2016-08-26,EXP - AMORTISATION - INTANGIBLE ASSETS,IT Strategy,CAPITA SECURE INFORMATION SOLUTIONS LTD,1011700738,843.8,RSA REPLACEMENT,SN14 0TW,ADMIN
FOOD STANDARDS AGENCY - Westminster,FOOD STANDARDS AGENCY - Westminster,2016-08-03,EXP - PURCHASE OF GOODS/SERVICES - AIR TRAVEL,Comms Directors Office,REDFERN TRAVEL LTD,1011700511,791.28,TRAVEL FOR WEEK 2016-30,BD1 5HQ,ADMIN
FOOD STANDARDS AGENCY - Westminster,FOOD STANDARDS AGENCY - Westminster,2016-08-01,EXP - PURCHASE OF GOODS/SERVICES - OTHER ICT COSTS - COMPUTER HARDWARE,IT Service Delivery,CAPITA SECURE INFORMATION SOLUTIONS LTD,1011700490,777,20 LENOVO X230,SN14 0TW,ADMIN
FOOD STANDARDS AGENCY - Westminster,FOOD STANDARDS AGENCY - Westminster,2016-08-01,EXP - PURCHASE OF GOODS/SERVICES - OTHER ICT COSTS - COMPUTER HARDWARE,IT Service Delivery,CAPITA SECURE INFORMATION SOLUTIONS LTD,1011700490,777,20 LENOVO X230,SN14 0TW,ADMIN
FOOD STANDARDS AGENCY - Westminster,FOOD STANDARDS AGENCY - Westminster,2016-08-17,EXP - PURCHASE OF GOODS/SERVICES - OTHER ICT COSTS,IT Service Delivery,CAPITA SECURE INFORMATION SOLUTIONS LTD,1011700640,777,THINKPAD BATTERIES,SN14 0TW,ADMIN
FOOD STANDARDS AGENCY - Westminster,FOOD STANDARDS AGENCY - Westminster,2016-08-17,EXP - PURCHASE OF GOODS/SERVICES - OTHER ICT COSTS,IT Service Delivery,CAPITA SECURE INFORMATION SOLUTIONS LTD,1011700640,777,THINKPAD BATTERIES,SN14 0TW,ADMIN
FOOD STANDARDS AGENCY - Westminster,FOOD STANDARDS AGENCY - Westminster,2016-08-03,EXP - PURCHASE OF GOODS/SERVICES - RAIL TRAVEL,Planning and Performance,REDFERN TRAVEL LTD,1011700511,743.9,TRAVEL FOR WEEK 2016-30,BD1 5HQ,ADMIN
FOOD STANDARDS AGENCY - Westminster,FOOD STANDARDS AGENCY - Westminster,2016-08-16,EXP - PURCHASE OF GOODS/SERVICES - OTHER - CARRIAGE OF SAMPLES,Operational Delivery,TOPSPEED COURIERS LIMITED,1011700629,715.2,RCDM COLLECTIONS X8 BOX RETURN X8,WA16 8XN,PROGRAMME
FOOD STANDARDS AGENCY - Westminster,FOOD STANDARDS AGENCY - Westminster,2016-08-02,EXP - AMORTISATION - INTANGIBLE ASSETS,IT Strategy,CAPITA SECURE INFORMATION SOLUTIONS LTD,1011700503,702.04,IT Expense,SN14 0TW,ADMIN
FOOD STANDARDS AGENCY - Westminster,FOOD STANDARDS AGENCY - Westminster,2016-08-16,EXP - PURCHASE OF GOODS/SERVICES - OTHER - CARRIAGE OF SAMPLES,Operational Delivery,TOPSPEED COURIERS LIMITED,1011700629,675,AMR X15,WA16 8XN,PROGRAMME
FOOD STANDARDS AGENCY - Westminster,FOOD STANDARDS AGENCY - Westminster,2016-08-17,EXP - PURCHASE OF GOODS/SERVICES - ICT OUTSOURCING & MAINT/SUPPORT,IT Service Delivery,CAPITA SECURE INFORMATION SOLUTIONS LTD,1011700640,631.9,FSA LONDON DISPOSAL,SN14 0TW,ADMIN
FOOD STANDARDS AGENCY - Westminster,FOOD STANDARDS AGENCY - Westminster,2016-08-18,EXP - PURCHASE OF GOODS/SERVICES - ACCOMM & BLDNG MGMT - SHARED SITE RECHARGE,Security & Estates,G4S FACILITIES MANAGEMENT UK LTD,1011700648,616.81,G4S INVOICE 90130582 - PERFORMANCE REALTED - AUG 2016,S81 7QF,ADMIN
FOOD STANDARDS AGENCY - Westminster,FOOD STANDARDS AGENCY - Westminster,2016-08-03,EXP - PURCHASE OF GOODS/SERVICES - SUBSISTENCE,Operations Local Delivery ,REDFERN TRAVEL LTD,1011700511,600.28,TRAVEL FOR WEEK 2016-30,BD1 5HQ,ADMIN
FOOD STANDARDS AGENCY - Westminster,FOOD STANDARDS AGENCY - Westminster,2016-08-03,EXP - PURCHASE OF GOODS/SERVICES - SUBSISTENCE,Planning and Performance,REDFERN TRAVEL LTD,1011700511,575.34,TRAVEL FOR WEEK 2016-30,BD1 5HQ,ADMIN
FOOD STANDARDS AGENCY - Westminster,FOOD STANDARDS AGENCY - Westminster,2016-08-03,EXP - PURCHASE OF GOODS/SERVICES - RAIL TRAVEL,IT Service Delivery,REDFERN TRAVEL LTD,1011700511,539.6,TRAVEL FOR WEEK 2016-30,BD1 5HQ,ADMIN
FOOD STANDARDS AGENCY - Westminster,FOOD STANDARDS AGENCY - Westminster,2016-08-01,EXP - AMORTISATION - INTANGIBLE ASSETS,IT Strategy,CAPITA SECURE INFORMATION SOLUTIONS LTD,1011700490,507.31,CITRIX UPGRADE,SN14 0TW,ADMIN
FOOD STANDARDS AGENCY - Westminster,FOOD STANDARDS AGENCY - Westminster,2016-08-03,EXP - PURCHASE OF GOODS/SERVICES - RAIL TRAVEL,IT Information & Knowledge Management,REDFERN TRAVEL LTD,1011700511,448.45,TRAVEL FOR WEEK 2016-30,BD1 5HQ,ADMIN
FOOD STANDARDS AGENCY - Westminster,FOOD STANDARDS AGENCY - Westminster,2016-08-01,EXP - PURCHASE OF GOODS/SERVICES - OTHER - PROGRAMME EXPENDITURE,Operations Local Delivery ,CAPITA SECURE INFORMATION SOLUTIONS LTD,1011700490,433.04,FHRS OOH SUPPORT,SN14 0TW,PROGRAMME
FOOD STANDARDS AGENCY - Westminster,FOOD STANDARDS AGENCY - Westminster,2016-08-23,EXP - PERMANENT UK STAFF - EMPLOYER'S SOCIAL SECURITY COSTS -OFFICE BASED,Finance Director & Branch,H M REVENUE & CUSTOMS,1011700692,422.28,ADDITIONAL CLASS 1A NICS,BD98 8AA,ADMIN
FOOD STANDARDS AGENCY - Westminster,FOOD STANDARDS AGENCY - Westminster,2016-08-03,EXP - PURCHASE OF GOODS/SERVICES - SUBSISTENCE,Directorate Support Unit,REDFERN TRAVEL LTD,1011700511,403.92,TRAVEL FOR WEEK 2016-30,BD1 5HQ,ADMIN
FOOD STANDARDS AGENCY - Westminster,FOOD STANDARDS AGENCY - Westminster,2016-08-03,EXP - PURCHASE OF GOODS/SERVICES - SUBSISTENCE,Area 6 South East England - Cluster 65,REDFERN TRAVEL LTD,1011700511,379.2,TRAVEL FOR WEEK 2016-30,BD1 5HQ,PROGRAMME
FOOD STANDARDS AGENCY - Westminster,FOOD STANDARDS AGENCY - Westminster,2016-08-03,EXP - PURCHASE OF GOODS/SERVICES - SUBSISTENCE,Regulatory & International,REDFERN TRAVEL LTD,1011700511,359.98,TRAVEL FOR WEEK 2016-30,BD1 5HQ,ADMIN
FOOD STANDARDS AGENCY - Westminster,FOOD STANDARDS AGENCY - Westminster,2016-08-03,EXP - PURCHASE OF GOODS/SERVICES - RAIL TRAVEL,Food Crime Unit - Admin,REDFERN TRAVEL LTD,1011700511,357.7,TRAVEL FOR WEEK 2016-30,BD1 5HQ,ADMIN
FOOD STANDARDS AGENCY - Westminster,FOOD STANDARDS AGENCY - Westminster,2016-08-03,EXP - PURCHASE OF GOODS/SERVICES - SUBSISTENCE,Food Incidents & Resilience - Prog,REDFERN TRAVEL LTD,1011700511,355.08,TRAVEL FOR WEEK 2016-30,BD1 5HQ,PROGRAMME
FOOD STANDARDS AGENCY - Westminster,FOOD STANDARDS AGENCY - Westminster,2016-08-01,EXP - PURCHASE OF GOODS/SERVICES - OTHER ICT COSTS - COMPUTER HARDWARE,IT Service Delivery,CAPITA SECURE INFORMATION SOLUTIONS LTD,1011700490,322.5,Lenovo Enhanced Performance USB Keyboard,SN14 0TW,ADMIN
FOOD STANDARDS AGENCY - Westminster,FOOD STANDARDS AGENCY - Westminster,2016-08-01,EXP - PURCHASE OF GOODS/SERVICES - OTHER ICT COSTS - COMPUTER HARDWARE,IT Service Delivery,CAPITA SECURE INFORMATION SOLUTIONS LTD,1011700490,313.8,20 LENOVO X230,SN14 0TW,ADMIN
FOOD STANDARDS AGENCY - Westminster,FOOD STANDARDS AGENCY - Westminster,2016-08-03,EXP - PURCHASE OF GOODS/SERVICES - RAIL TRAVEL,Animal Feed     ,REDFERN TRAVEL LTD,1011700511,306,TRAVEL FOR WEEK 2016-30,BD1 5HQ,ADMIN
FOOD STANDARDS AGENCY - Westminster,FOOD STANDARDS AGENCY - Westminster,2016-08-03,EXP - PURCHASE OF GOODS/SERVICES - RAIL TRAVEL,Regulatory & International,REDFERN TRAVEL LTD,1011700511,302.3,TRAVEL FOR WEEK 2016-30,BD1 5HQ,ADMIN
FOOD STANDARDS AGENCY - Westminster,FOOD STANDARDS AGENCY - Westminster,2016-08-03,EXP - PURCHASE OF GOODS/SERVICES - OTHER FOREIGN TRAVEL,Food Hygiene Policy Branch,REDFERN TRAVEL LTD,1011700511,298,TRAVEL FOR WEEK 2016-30,BD1 5HQ,ADMIN
FOOD STANDARDS AGENCY - Westminster,FOOD STANDARDS AGENCY - Westminster,2016-08-03,EXP - PURCHASE OF GOODS/SERVICES - AIR TRAVEL,Operations Assurance ,REDFERN TRAVEL LTD,1011700511,292.76,TRAVEL FOR WEEK 2016-30,BD1 5HQ,PROGRAMME
FOOD STANDARDS AGENCY - Westminster,FOOD STANDARDS AGENCY - Westminster,2016-08-03,EXP - PURCHASE OF GOODS/SERVICES - SUBSISTENCE,Comms Directors Office,REDFERN TRAVEL LTD,1011700511,290.46,TRAVEL FOR WEEK 2016-30,BD1 5HQ,ADMIN
FOOD STANDARDS AGENCY - Westminster,FOOD STANDARDS AGENCY - Westminster,2016-08-02,EXP - AMORTISATION - INTANGIBLE ASSETS,IT Strategy,CAPITA SECURE INFORMATION SOLUTIONS LTD,1011700503,286.32,IT Expense,SN14 0TW,ADMIN
FOOD STANDARDS AGENCY - Westminster,FOOD STANDARDS AGENCY - Westminster,2016-08-03,EXP - PURCHASE OF GOODS/SERVICES - FOREIGN SUBSISTENCE,Food Hygiene Policy Branch,REDFERN TRAVEL LTD,1011700511,272.54,TRAVEL FOR WEEK 2016-30,BD1 5HQ,ADMIN
FOOD STANDARDS AGENCY - Westminster,FOOD STANDARDS AGENCY - Westminster,2016-08-03,EXP - PURCHASE OF GOODS/SERVICES - SUBSISTENCE,Area 2 Wales - Cluster 23,REDFERN TRAVEL LTD,1011700511,271.2,TRAVEL FOR WEEK 2016-30,BD1 5HQ,PROGRAMME
FOOD STANDARDS AGENCY - Westminster,FOOD STANDARDS AGENCY - Westminster,2016-08-03,EXP - PURCHASE OF GOODS/SERVICES - SUBSISTENCE,Area 5 South West England - Cluster 51,REDFERN TRAVEL LTD,1011700511,271.2,TRAVEL FOR WEEK 2016-30,BD1 5HQ,PROGRAMME
FOOD STANDARDS AGENCY - Westminster,FOOD STANDARDS AGENCY - Westminster,2016-08-03,EXP - PURCHASE OF GOODS/SERVICES - RAIL TRAVEL,Area 2 Wales - Cluster 21,REDFERN TRAVEL LTD,1011700511,269.1,TRAVEL FOR WEEK 2016-30,BD1 5HQ,PROGRAMME
FOOD STANDARDS AGENCY - Westminster,FOOD STANDARDS AGENCY - Westminster,2016-08-17,EXP - PURCHASE OF GOODS/SERVICES - OTHER ICT COSTS,IT Service Delivery,CAPITA SECURE INFORMATION SOLUTIONS LTD,1011700640,258,MFD STAPLES,SN14 0TW,ADMIN
FOOD STANDARDS AGENCY - Westminster,FOOD STANDARDS AGENCY - Westminster,2016-08-03,EXP - PURCHASE OF GOODS/SERVICES - RAIL TRAVEL,Area 4 North East England - Cluster 46,REDFERN TRAVEL LTD,1011700511,246.5,TRAVEL FOR WEEK 2016-30,BD1 5HQ,PROGRAMME
FOOD STANDARDS AGENCY - Westminster,FOOD STANDARDS AGENCY - Westminster,2016-08-18,EXP - PURCHASE OF GOODS/SERVICES - OTHER FACILTIES COSTS - SECURITY,Security & Estates,G4S FACILITIES MANAGEMENT UK LTD,1011700648,232.68,G4S INVOICE 90130582 - PERFORMANCE REALTED - AUG 2016,S81 7QF,ADMIN
FOOD STANDARDS AGENCY - Westminster,FOOD STANDARDS AGENCY - Westminster,2016-08-01,EXP - PURCHASE OF GOODS/SERVICES - TELECOMS - TELEPHONE,IT Service Delivery,CAPITA SECURE INFORMATION SOLUTIONS LTD,1011700490,230,PLANT 5269 ROUTER RECONFIGURATION,SN14 0TW,ADMIN
FOOD STANDARDS AGENCY - Westminster,FOOD STANDARDS AGENCY - Westminster,2016-08-01,EXP - PURCHASE OF GOODS/SERVICES - OTHER ICT COSTS - COMPUTER SOFTWARE,IT Service Delivery,CAPITA SECURE INFORMATION SOLUTIONS LTD,1011700490,225.72,CLPG Acrobat Pro DC (perpetual) 2015 Multiple Platforms International English Full License,SN14 0TW,ADMIN
FOOD STANDARDS AGENCY - Westminster,FOOD STANDARDS AGENCY - Westminster,2016-08-03,EXP - PURCHASE OF GOODS/SERVICES - RAIL TRAVEL,Directorate Support Unit,REDFERN TRAVEL LTD,1011700511,224,TRAVEL FOR WEEK 2016-30,BD1 5HQ,ADMIN
FOOD STANDARDS AGENCY - Westminster,FOOD STANDARDS AGENCY - Westminster,2016-08-03,EXP - PURCHASE OF GOODS/SERVICES - RAIL TRAVEL,Organisational Development,REDFERN TRAVEL LTD,1011700511,218.2,TRAVEL FOR WEEK 2016-30,BD1 5HQ,ADMIN
FOOD STANDARDS AGENCY - Westminster,FOOD STANDARDS AGENCY - Westminster,2016-08-03,EXP - PURCHASE OF GOODS/SERVICES - SUBSISTENCE,Chief Executive & Private Office,REDFERN TRAVEL LTD,1011700511,211.11,TRAVEL FOR WEEK 2016-30,BD1 5HQ,ADMIN
FOOD STANDARDS AGENCY - Westminster,FOOD STANDARDS AGENCY - Westminster,2016-08-01,EXP - PURCHASE OF GOODS/SERVICES - OTHER ICT COSTS - COMPUTER SOFTWARE,IT Service Delivery,CAPITA SECURE INFORMATION SOLUTIONS LTD,1011700490,210,CLPG Acrobat Professional ALL Multiple Platforms International English New Upgrade Plan 2Y,SN14 0TW,ADMIN
FOOD STANDARDS AGENCY - Westminster,FOOD STANDARDS AGENCY - Westminster,2016-08-03,EXP - PURCHASE OF GOODS/SERVICES - SUBSISTENCE,Area 2 Wales - Cluster 22,REDFERN TRAVEL LTD,1011700511,198.15,TRAVEL FOR WEEK 2016-30,BD1 5HQ,PROGRAMME
FOOD STANDARDS AGENCY - Westminster,FOOD STANDARDS AGENCY - Westminster,2016-08-03,EXP - PURCHASE OF GOODS/SERVICES - AIR TRAVEL,Operational Delivery,REDFERN TRAVEL LTD,1011700511,197.51,TRAVEL FOR WEEK 2016-30,BD1 5HQ,PROGRAMME
FOOD STANDARDS AGENCY - Westminster,FOOD STANDARDS AGENCY - Westminster,2016-08-03,EXP - PURCHASE OF GOODS/SERVICES - SUBSISTENCE,Non Meat Field Ops,REDFERN TRAVEL LTD,1011700511,181.88,TRAVEL FOR WEEK 2016-30,BD1 5HQ,PROGRAMME
FOOD STANDARDS AGENCY - Westminster,FOOD STANDARDS AGENCY - Westminster,2016-08-17,EXP - PURCHASE OF GOODS/SERVICES - OTHER ICT COSTS - COMPUTER HARDWARE,IT Service Delivery,CAPITA SECURE INFORMATION SOLUTIONS LTD,1011700640,177.1,REPLACEMENT FOR FAILED DRIVE,SN14 0TW,ADMIN
FOOD STANDARDS AGENCY - Westminster,FOOD STANDARDS AGENCY - Westminster,2016-08-17,EXP - PURCHASE OF GOODS/SERVICES - OTHER ICT COSTS,IT Service Delivery,CAPITA SECURE INFORMATION SOLUTIONS LTD,1011700640,156.9,THINKPAD BATTERIES,SN14 0TW,ADMIN
FOOD STANDARDS AGENCY - Westminster,FOOD STANDARDS AGENCY - Westminster,2016-08-17,EXP - PURCHASE OF GOODS/SERVICES - OTHER ICT COSTS,IT Service Delivery,CAPITA SECURE INFORMATION SOLUTIONS LTD,1011700640,156.9,THINKPAD BATTERIES,SN14 0TW,ADMIN
FOOD STANDARDS AGENCY - Westminster,FOOD STANDARDS AGENCY - Westminster,2016-08-03,EXP - PURCHASE OF GOODS/SERVICES - SUBSISTENCE,Internal Audit,REDFERN TRAVEL LTD,1011700511,151.7,TRAVEL FOR WEEK 2016-30,BD1 5HQ,ADMIN
FOOD STANDARDS AGENCY - Westminster,FOOD STANDARDS AGENCY - Westminster,2016-08-03,EXP - PURCHASE OF GOODS/SERVICES -  FOREIGN AIR TRAVEL,Operations Local Delivery ,REDFERN TRAVEL LTD,1011700511,146.85,TRAVEL FOR WEEK 2016-30,BD1 5HQ,ADMIN
FOOD STANDARDS AGENCY - Westminster,FOOD STANDARDS AGENCY - Westminster,2016-08-03,EXP - PURCHASE OF GOODS/SERVICES - FOREIGN SUBSISTENCE,Additives,REDFERN TRAVEL LTD,1011700511,140.1,TRAVEL FOR WEEK 2016-30,BD1 5HQ,ADMIN
FOOD STANDARDS AGENCY - Westminster,FOOD STANDARDS AGENCY - Westminster,2016-08-03,EXP - PURCHASE OF GOODS/SERVICES - RAIL TRAVEL,Area 4 North East England - Cluster 41,REDFERN TRAVEL LTD,1011700511,139,TRAVEL FOR WEEK 2016-30,BD1 5HQ,PROGRAMME
FOOD STANDARDS AGENCY - Westminster,FOOD STANDARDS AGENCY - Westminster,2016-08-03,EXP - PURCHASE OF GOODS/SERVICES - SUBSISTENCE,Legal Branch A & Investigations,REDFERN TRAVEL LTD,1011700511,128.88,TRAVEL FOR WEEK 2016-30,BD1 5HQ,ADMIN
FOOD STANDARDS AGENCY - Westminster,FOOD STANDARDS AGENCY - Westminster,2016-08-03,EXP - PURCHASE OF GOODS/SERVICES - SUBSISTENCE,Food Crime Unit - Admin,REDFERN TRAVEL LTD,1011700511,125.2,TRAVEL FOR WEEK 2016-30,BD1 5HQ,ADMIN
FOOD STANDARDS AGENCY - Westminster,FOOD STANDARDS AGENCY - Westminster,2016-08-03,EXP - PURCHASE OF GOODS/SERVICES - RAIL TRAVEL,Non Meat Field Ops,REDFERN TRAVEL LTD,1011700511,121.5,TRAVEL FOR WEEK 2016-30,BD1 5HQ,PROGRAMME
FOOD STANDARDS AGENCY - Westminster,FOOD STANDARDS AGENCY - Westminster,2016-08-03,EXP - PURCHASE OF GOODS/SERVICES - FOREIGN SUBSISTENCE,Regulatory & International,REDFERN TRAVEL LTD,1011700511,120.95,TRAVEL FOR WEEK 2016-30,BD1 5HQ,ADMIN
FOOD STANDARDS AGENCY - Westminster,FOOD STANDARDS AGENCY - Westminster,2016-08-17,EXP - PURCHASE OF GOODS/SERVICES - OTHER ICT COSTS,IT Service Delivery,CAPITA SECURE INFORMATION SOLUTIONS LTD,1011700640,119,THINKPAD LAPTOP BAGS,SN14 0TW,ADMIN
FOOD STANDARDS AGENCY - Westminster,FOOD STANDARDS AGENCY - Westminster,2016-08-17,EXP - PURCHASE OF GOODS/SERVICES - OTHER ICT COSTS,IT Service Delivery,CAPITA SECURE INFORMATION SOLUTIONS LTD,1011700640,119,THINKPAD LAPTOP BAGS,SN14 0TW,ADMIN
FOOD STANDARDS AGENCY - Westminster,FOOD STANDARDS AGENCY - Westminster,2016-08-03,EXP - PURCHASE OF GOODS/SERVICES - SUBSISTENCE,Area 6 South East England - Cluster 65,REDFERN TRAVEL LTD,1011700511,117.03,TRAVEL FOR WEEK 2016-30,BD1 5HQ,PROGRAMME
FOOD STANDARDS AGENCY - Westminster,FOOD STANDARDS AGENCY - Westminster,2016-08-03,EXP - PURCHASE OF GOODS/SERVICES - RAIL TRAVEL,Comms Directors Office,REDFERN TRAVEL LTD,1011700511,116,TRAVEL FOR WEEK 2016-30,BD1 5HQ,ADMIN
FOOD STANDARDS AGENCY - Westminster,FOOD STANDARDS AGENCY - Westminster,2016-08-03,EXP - PURCHASE OF GOODS/SERVICES - AIR TRAVEL,Food Crime Unit - Prog,REDFERN TRAVEL LTD,1011700511,112.92,TRAVEL FOR WEEK 2016-30,BD1 5HQ,PROGRAMME
FOOD STANDARDS AGENCY - Westminster,FOOD STANDARDS AGENCY - Westminster,2016-08-03,EXP - PURCHASE OF GOODS/SERVICES - RAIL TRAVEL,Internal Audit,REDFERN TRAVEL LTD,1011700511,112.1,TRAVEL FOR WEEK 2016-30,BD1 5HQ,ADMIN
FOOD STANDARDS AGENCY - Westminster,FOOD STANDARDS AGENCY - Westminster,2016-08-03,EXP - PURCHASE OF GOODS/SERVICES - RAIL TRAVEL,Area 4 North East England - Cluster 43,REDFERN TRAVEL LTD,1011700511,111.3,TRAVEL FOR WEEK 2016-30,BD1 5HQ,PROGRAMME
FOOD STANDARDS AGENCY - Westminster,FOOD STANDARDS AGENCY - Westminster,2016-08-03,EXP - PURCHASE OF GOODS/SERVICES - RAIL TRAVEL,Security & Estates,REDFERN TRAVEL LTD,1011700511,111.25,TRAVEL FOR WEEK 2016-30,BD1 5HQ,ADMIN
FOOD STANDARDS AGENCY - Westminster,FOOD STANDARDS AGENCY - Westminster,2016-08-03,EXP - PURCHASE OF GOODS/SERVICES - SUBSISTENCE,Area 4 North East England - Cluster 41,REDFERN TRAVEL LTD,1011700511,109.8,TRAVEL FOR WEEK 2016-30,BD1 5HQ,PROGRAMME
FOOD STANDARDS AGENCY - Westminster,FOOD STANDARDS AGENCY - Westminster,2016-08-03,EXP - PURCHASE OF GOODS/SERVICES - RAIL TRAVEL,Area 3 North West England - Cluster 34,REDFERN TRAVEL LTD,1011700511,109.55,TRAVEL FOR WEEK 2016-30,BD1 5HQ,PROGRAMME
FOOD STANDARDS AGENCY - Westminster,FOOD STANDARDS AGENCY - Westminster,2016-08-03,EXP - PURCHASE OF GOODS/SERVICES - SUBSISTENCE,Area 3 North West England - Cluster 32,REDFERN TRAVEL LTD,1011700511,109.23,TRAVEL FOR WEEK 2016-30,BD1 5HQ,PROGRAMME
FOOD STANDARDS AGENCY - Westminster,FOOD STANDARDS AGENCY - Westminster,2016-08-03,EXP - PURCHASE OF GOODS/SERVICES - SUBSISTENCE,Procurement,REDFERN TRAVEL LTD,1011700511,109.23,TRAVEL FOR WEEK 2016-30,BD1 5HQ,ADMIN
FOOD STANDARDS AGENCY - Westminster,FOOD STANDARDS AGENCY - Westminster,2016-08-03,EXP - PURCHASE OF GOODS/SERVICES - SUBSISTENCE,IT Information & Knowledge Management,REDFERN TRAVEL LTD,1011700511,93.55,TRAVEL FOR WEEK 2016-30,BD1 5HQ,ADMIN
FOOD STANDARDS AGENCY - Westminster,FOOD STANDARDS AGENCY - Westminster,2016-08-03,EXP - PURCHASE OF GOODS/SERVICES - RAIL TRAVEL,Area 6 South East England - Cluster 61,REDFERN TRAVEL LTD,1011700511,88.7,TRAVEL FOR WEEK 2016-30,BD1 5HQ,PROGRAMME
FOOD STANDARDS AGENCY - Westminster,FOOD STANDARDS AGENCY - Westminster,2016-08-03,EXP - PURCHASE OF GOODS/SERVICES - RAIL TRAVEL,Chemical Risk Assessment Unit,REDFERN TRAVEL LTD,1011700511,83,TRAVEL FOR WEEK 2016-30,BD1 5HQ,ADMIN
FOOD STANDARDS AGENCY - Westminster,FOOD STANDARDS AGENCY - Westminster,2016-08-03,EXP - PURCHASE OF GOODS/SERVICES - RAIL TRAVEL,Procurement,REDFERN TRAVEL LTD,1011700511,83,TRAVEL FOR WEEK 2016-30,BD1 5HQ,ADMIN
FOOD STANDARDS AGENCY - Westminster,FOOD STANDARDS AGENCY - Westminster,2016-08-03,EXP - PURCHASE OF GOODS/SERVICES - SUBSISTENCE,Finance Director & Branch,REDFERN TRAVEL LTD,1011700511,82.6,TRAVEL FOR WEEK 2016-30,BD1 5HQ,ADMIN
FOOD STANDARDS AGENCY - Westminster,FOOD STANDARDS AGENCY - Westminster,2016-08-03,EXP - PURCHASE OF GOODS/SERVICES - SUBSISTENCE,Area 6 South East England - Cluster 62,REDFERN TRAVEL LTD,1011700511,81.6,TRAVEL FOR WEEK 2016-30,BD1 5HQ,PROGRAMME
FOOD STANDARDS AGENCY - Westminster,FOOD STANDARDS AGENCY - Westminster,2016-08-03,EXP - PURCHASE OF GOODS/SERVICES - SUBSISTENCE,Additives,REDFERN TRAVEL LTD,1011700511,81.6,TRAVEL FOR WEEK 2016-30,BD1 5HQ,ADMIN
FOOD STANDARDS AGENCY - Westminster,FOOD STANDARDS AGENCY - Westminster,2016-08-03,EXP - PURCHASE OF GOODS/SERVICES - RAIL TRAVEL,Contaminants HoD,REDFERN TRAVEL LTD,1011700511,79.6,TRAVEL FOR WEEK 2016-30,BD1 5HQ,ADMIN
FOOD STANDARDS AGENCY - Westminster,FOOD STANDARDS AGENCY - Westminster,2016-08-03,EXP - PURCHASE OF GOODS/SERVICES - SUBSISTENCE,Contaminants Policy & Strategy Unit,REDFERN TRAVEL LTD,1011700511,79.6,TRAVEL FOR WEEK 2016-30,BD1 5HQ,ADMIN
FOOD STANDARDS AGENCY - Westminster,FOOD STANDARDS AGENCY - Westminster,2016-08-03,EXP - PURCHASE OF GOODS/SERVICES - RAIL TRAVEL,Area 6 South East England - Cluster 64,REDFERN TRAVEL LTD,1011700511,78.9,TRAVEL FOR WEEK 2016-30,BD1 5HQ,PROGRAMME
FOOD STANDARDS AGENCY - Westminster,FOOD STANDARDS AGENCY - Westminster,2016-08-01,EXP - PURCHASE OF GOODS/SERVICES - OTHER ICT COSTS - COMPUTER HARDWARE,IT Service Delivery,CAPITA SECURE INFORMATION SOLUTIONS LTD,1011700490,73.9,PENGUIN MOUSE,SN14 0TW,ADMIN
FOOD STANDARDS AGENCY - Westminster,FOOD STANDARDS AGENCY - Westminster,2016-08-03,EXP - PURCHASE OF GOODS/SERVICES - SUBSISTENCE,Internal Audit,REDFERN TRAVEL LTD,1011700511,73.1,TRAVEL FOR WEEK 2016-30,BD1 5HQ,ADMIN
FOOD STANDARDS AGENCY - Westminster,FOOD STANDARDS AGENCY - Westminster,2016-08-03,EXP - PURCHASE OF GOODS/SERVICES - RAIL TRAVEL,Contaminants Policy & Strategy Unit,REDFERN TRAVEL LTD,1011700511,73,TRAVEL FOR WEEK 2016-30,BD1 5HQ,ADMIN
FOOD STANDARDS AGENCY - Westminster,FOOD STANDARDS AGENCY - Westminster,2016-08-03,EXP - PURCHASE OF GOODS/SERVICES - RAIL TRAVEL,Additives,REDFERN TRAVEL LTD,1011700511,72.9,TRAVEL FOR WEEK 2016-30,BD1 5HQ,ADMIN
FOOD STANDARDS AGENCY - Westminster,FOOD STANDARDS AGENCY - Westminster,2016-08-03,EXP - PURCHASE OF GOODS/SERVICES - RAIL TRAVEL,Area 4 North East England - Cluster 47,REDFERN TRAVEL LTD,1011700511,72.5,TRAVEL FOR WEEK 2016-30,BD1 5HQ,PROGRAMME
FOOD STANDARDS AGENCY - Westminster,FOOD STANDARDS AGENCY - Westminster,2016-08-03,EXP - PURCHASE OF GOODS/SERVICES - AIR TRAVEL,Chair & Deputy Chair,REDFERN TRAVEL LTD,1011700511,72.16,TRAVEL FOR WEEK 2016-30,BD1 5HQ,ADMIN
FOOD STANDARDS AGENCY - Westminster,FOOD STANDARDS AGENCY - Westminster,2016-08-03,EXP - PURCHASE OF GOODS/SERVICES - RAIL TRAVEL,Area 6 South East England - Cluster 62,REDFERN TRAVEL LTD,1011700511,69.8,TRAVEL FOR WEEK 2016-30,BD1 5HQ,PROGRAMME
FOOD STANDARDS AGENCY - Westminster,FOOD STANDARDS AGENCY - Westminster,2016-08-03,EXP - PURCHASE OF GOODS/SERVICES - RAIL TRAVEL,Area 3 North West England - Cluster 32,REDFERN TRAVEL LTD,1011700511,68.7,TRAVEL FOR WEEK 2016-30,BD1 5HQ,PROGRAMME
FOOD STANDARDS AGENCY - Westminster,FOOD STANDARDS AGENCY - Westminster,2016-08-03,EXP - PURCHASE OF GOODS/SERVICES - RAIL TRAVEL,Area 6 South East England - Cluster 65,REDFERN TRAVEL LTD,1011700511,66.9,TRAVEL FOR WEEK 2016-30,BD1 5HQ,PROGRAMME
FOOD STANDARDS AGENCY - Westminster,FOOD STANDARDS AGENCY - Westminster,2016-08-01,EXP - PURCHASE OF GOODS/SERVICES - OTHER ICT COSTS - COMPUTER HARDWARE,IT Service Delivery,CAPITA SECURE INFORMATION SOLUTIONS LTD,1011700490,66,Lenovo Enhanced Performance USB Keyboard,SN14 0TW,ADMIN
FOOD STANDARDS AGENCY - Westminster,FOOD STANDARDS AGENCY - Westminster,2016-08-03,EXP - PURCHASE OF GOODS/SERVICES - SUBSISTENCE,Food Crime Unit - Prog,REDFERN TRAVEL LTD,1011700511,65.6,TRAVEL FOR WEEK 2016-30,BD1 5HQ,PROGRAMME
FOOD STANDARDS AGENCY - Westminster,FOOD STANDARDS AGENCY - Westminster,2016-08-03,EXP - PURCHASE OF GOODS/SERVICES - AIR TRAVEL,Food Crime Unit - Admin,REDFERN TRAVEL LTD,1011700511,62.98,TRAVEL FOR WEEK 2016-30,BD1 5HQ,ADMIN
FOOD STANDARDS AGENCY - Westminster,FOOD STANDARDS AGENCY - Westminster,2016-08-03,EXP - PURCHASE OF GOODS/SERVICES - RAIL TRAVEL,Area 4 North East England - Cluster 48,REDFERN TRAVEL LTD,1011700511,56.9,TRAVEL FOR WEEK 2016-30,BD1 5HQ,PROGRAMME
FOOD STANDARDS AGENCY - Westminster,FOOD STANDARDS AGENCY - Westminster,2016-08-03,EXP - PURCHASE OF GOODS/SERVICES - RAIL TRAVEL,Area 6 South East England - Cluster 63,REDFERN TRAVEL LTD,1011700511,55,TRAVEL FOR WEEK 2016-30,BD1 5HQ,PROGRAMME
FOOD STANDARDS AGENCY - Westminster,FOOD STANDARDS AGENCY - Westminster,2016-08-17,EXP - PURCHASE OF GOODS/SERVICES - OTHER ICT COSTS,IT Service Delivery,CAPITA SECURE INFORMATION SOLUTIONS LTD,1011700640,51.6,MFD STAPLES,SN14 0TW,ADMIN
FOOD STANDARDS AGENCY - Westminster,FOOD STANDARDS AGENCY - Westminster,2016-08-16,EXP - PURCHASE OF GOODS/SERVICES - OTHER - CARRIAGE OF SAMPLES,Operational Delivery,TOPSPEED COURIERS LIMITED,1011700629,50,EBL X1,WA16 8XN,PROGRAMME
FOOD STANDARDS AGENCY - Westminster,FOOD STANDARDS AGENCY - Westminster,2016-08-03,EXP - PURCHASE OF GOODS/SERVICES - RAIL TRAVEL,Area 3 North West England - Cluster 31,REDFERN TRAVEL LTD,1011700511,48.15,TRAVEL FOR WEEK 2016-30,BD1 5HQ,PROGRAMME
FOOD STANDARDS AGENCY - Westminster,FOOD STANDARDS AGENCY - Westminster,2016-08-03,EXP - PURCHASE OF GOODS/SERVICES - SUBSISTENCE,Area 5 South West England - Cluster 54,REDFERN TRAVEL LTD,1011700511,47.52,TRAVEL FOR WEEK 2016-30,BD1 5HQ,PROGRAMME
FOOD STANDARDS AGENCY - Westminster,FOOD STANDARDS AGENCY - Westminster,2016-08-01,EXP - PURCHASE OF GOODS/SERVICES - TELECOMS - TELEPHONE,IT Service Delivery,CAPITA SECURE INFORMATION SOLUTIONS LTD,1011700490,46,PLANT 5269 ROUTER RECONFIGURATION,SN14 0TW,ADMIN
FOOD STANDARDS AGENCY - Westminster,FOOD STANDARDS AGENCY - Westminster,2016-08-03,EXP - PURCHASE OF GOODS/SERVICES - SUBSISTENCE,Area 5 South West England - Cluster 52,REDFERN TRAVEL LTD,1011700511,43.2,TRAVEL FOR WEEK 2016-30,BD1 5HQ,PROGRAMME
FOOD STANDARDS AGENCY - Westminster,FOOD STANDARDS AGENCY - Westminster,2016-08-03,EXP - PURCHASE OF GOODS/SERVICES - SUBSISTENCE,Area 4 North East England - Cluster 47,REDFERN TRAVEL LTD,1011700511,41.22,TRAVEL FOR WEEK 2016-30,BD1 5HQ,PROGRAMME
FOOD STANDARDS AGENCY - Westminster,FOOD STANDARDS AGENCY - Westminster,2016-08-03,EXP - PURCHASE OF GOODS/SERVICES - RAIL TRAVEL,Microbiological Food Safety Branch,REDFERN TRAVEL LTD,1011700511,39.8,TRAVEL FOR WEEK 2016-30,BD1 5HQ,ADMIN
FOOD STANDARDS AGENCY - Westminster,FOOD STANDARDS AGENCY - Westminster,2016-08-17,EXP - PURCHASE OF GOODS/SERVICES - OTHER ICT COSTS - COMPUTER HARDWARE,IT Service Delivery,CAPITA SECURE INFORMATION SOLUTIONS LTD,1011700640,36.92,REPLACEMENT FOR FAILED DRIVE,SN14 0TW,ADMIN
FOOD STANDARDS AGENCY - Westminster,FOOD STANDARDS AGENCY - Westminster,2016-08-03,EXP - PURCHASE OF GOODS/SERVICES - RAIL TRAVEL,Analysis & Research Branch,REDFERN TRAVEL LTD,1011700511,36.1,TRAVEL FOR WEEK 2016-30,BD1 5HQ,ADMIN
FOOD STANDARDS AGENCY - Westminster,FOOD STANDARDS AGENCY - Westminster,2016-08-17,EXP - PURCHASE OF GOODS/SERVICES - OTHER ICT COSTS,IT Service Delivery,CAPITA SECURE INFORMATION SOLUTIONS LTD,1011700640,25.3,THINKPAD LAPTOP BAGS,SN14 0TW,ADMIN
FOOD STANDARDS AGENCY - Westminster,FOOD STANDARDS AGENCY - Westminster,2016-08-17,EXP - PURCHASE OF GOODS/SERVICES - OTHER ICT COSTS,IT Service Delivery,CAPITA SECURE INFORMATION SOLUTIONS LTD,1011700640,25.3,THINKPAD LAPTOP BAGS,SN14 0TW,ADMIN
FOOD STANDARDS AGENCY - Westminster,FOOD STANDARDS AGENCY - Westminster,2016-08-03,EXP - PURCHASE OF GOODS/SERVICES - RAIL TRAVEL,Area 3 North West England - Cluster 35,REDFERN TRAVEL LTD,1011700511,25.2,TRAVEL FOR WEEK 2016-30,BD1 5HQ,PROGRAMME
FOOD STANDARDS AGENCY - Westminster,FOOD STANDARDS AGENCY - Westminster,2016-08-03,EXP - PURCHASE OF GOODS/SERVICES - RAIL TRAVEL,Chief Scientist,REDFERN TRAVEL LTD,1011700511,18.3,TRAVEL FOR WEEK 2016-30,BD1 5HQ,ADMIN
FOOD STANDARDS AGENCY - Westminster,FOOD STANDARDS AGENCY - Westminster,2016-08-01,EXP - PURCHASE OF GOODS/SERVICES - OTHER ICT COSTS - COMPUTER HARDWARE,IT Service Delivery,CAPITA SECURE INFORMATION SOLUTIONS LTD,1011700490,16.28,PENGUIN MOUSE,SN14 0TW,ADMIN
FOOD STANDARDS AGENCY - Westminster,FOOD STANDARDS AGENCY - Westminster,2016-08-03,EXP - PURCHASE OF GOODS/SERVICES - TAXI SERVICES,Operations Local Delivery ,REDFERN TRAVEL LTD,1011700511,14.45,TRAVEL FOR WEEK 2016-30,BD1 5HQ,ADMIN
FOOD STANDARDS AGENCY - Westminster,FOOD STANDARDS AGENCY - Westminster,2016-08-03,EXP - PURCHASE OF GOODS/SERVICES - RAIL TRAVEL,Operations Assurance - Admin,REDFERN TRAVEL LTD,1011700511,10.3,TRAVEL FOR WEEK 2016-30,BD1 5HQ,ADMIN
FOOD STANDARDS AGENCY - Westminster,FOOD STANDARDS AGENCY - Westminster,2016-08-01,EXP - PURCHASE OF GOODS/SERVICES - OTHER ICT COSTS - COMPUTER HARDWARE,IT Service Delivery,CAPITA SECURE INFORMATION SOLUTIONS LTD,1011700490,7.5,Lenovo Enhanced Performance USB Keyboard - Delivery,SN14 0TW,ADMIN
FOOD STANDARDS AGENCY - Westminster,FOOD STANDARDS AGENCY - Westminster,2016-08-01,EXP - PURCHASE OF GOODS/SERVICES - OTHER ICT COSTS - COMPUTER HARDWARE,IT Service Delivery,CAPITA SECURE INFORMATION SOLUTIONS LTD,1011700490,7.5,PENGUIN MOUSE,SN14 0TW,ADMIN
FOOD STANDARDS AGENCY - Westminster,FOOD STANDARDS AGENCY - Westminster,2016-08-01,EXP - PURCHASE OF GOODS/SERVICES - OTHER ICT COSTS - COMPUTER HARDWARE,IT Service Delivery,CAPITA SECURE INFORMATION SOLUTIONS LTD,1011700490,7.5,20 LENOVO X230,SN14 0TW,ADMIN
FOOD STANDARDS AGENCY - Westminster,FOOD STANDARDS AGENCY - Westminster,2016-08-01,EXP - PURCHASE OF GOODS/SERVICES - OTHER ICT COSTS - COMPUTER HARDWARE,IT Service Delivery,CAPITA SECURE INFORMATION SOLUTIONS LTD,1011700490,7.5,20 LENOVO X230,SN14 0TW,ADMIN
FOOD STANDARDS AGENCY - Westminster,FOOD STANDARDS AGENCY - Westminster,2016-08-17,EXP - PURCHASE OF GOODS/SERVICES - OTHER ICT COSTS,IT Service Delivery,CAPITA SECURE INFORMATION SOLUTIONS LTD,1011700640,7.5,THINKPAD BATTERIES,SN14 0TW,ADMIN
FOOD STANDARDS AGENCY - Westminster,FOOD STANDARDS AGENCY - Westminster,2016-08-17,EXP - PURCHASE OF GOODS/SERVICES - OTHER ICT COSTS,IT Service Delivery,CAPITA SECURE INFORMATION SOLUTIONS LTD,1011700640,7.5,THINKPAD BATTERIES,SN14 0TW,ADMIN
FOOD STANDARDS AGENCY - Westminster,FOOD STANDARDS AGENCY - Westminster,2016-08-17,EXP - PURCHASE OF GOODS/SERVICES - OTHER ICT COSTS,IT Service Delivery,CAPITA SECURE INFORMATION SOLUTIONS LTD,1011700640,7.5,THINKPAD LAPTOP BAGS,SN14 0TW,ADMIN
FOOD STANDARDS AGENCY - Westminster,FOOD STANDARDS AGENCY - Westminster,2016-08-17,EXP - PURCHASE OF GOODS/SERVICES - OTHER ICT COSTS,IT Service Delivery,CAPITA SECURE INFORMATION SOLUTIONS LTD,1011700640,7.5,THINKPAD LAPTOP BAGS,SN14 0TW,ADMIN
FOOD STANDARDS AGENCY - Westminster,FOOD STANDARDS AGENCY - Westminster,2016-08-17,EXP - PURCHASE OF GOODS/SERVICES - OTHER ICT COSTS - COMPUTER HARDWARE,IT Service Delivery,CAPITA SECURE INFORMATION SOLUTIONS LTD,1011700640,7.5,REPLACEMENT FOR FAILED DRIVE,SN14 0TW,ADMIN
FOOD STANDARDS AGENCY - Westminster,FOOD STANDARDS AGENCY - Westminster,2016-08-03,EXP - PURCHASE OF GOODS/SERVICES - OTHER TRAVEL,Operations Local Delivery ,REDFERN TRAVEL LTD,1011700511,5.9,TRAVEL FOR WEEK 2016-30,BD1 5HQ,ADMIN
FOOD STANDARDS AGENCY - Westminster,FOOD STANDARDS AGENCY - Westminster,2016-08-03,EXP - PURCHASE OF GOODS/SERVICES - SUBSISTENCE,Legal Branch A & Investigations,REDFERN TRAVEL LTD,1011700511,1.4,TRAVEL FOR WEEK 2016-30,BD1 5HQ,ADMIN
FOOD STANDARDS AGENCY - Westminster,FOOD STANDARDS AGENCY - Westminster,2016-08-03,EXP - PURCHASE OF GOODS/SERVICES - RAIL TRAVEL,IT Information & Knowledge Management,REDFERN TRAVEL LTD,1011700511,-3.4,TRAVEL FOR WEEK 2016-30,BD1 5HQ,ADMIN
FOOD STANDARDS AGENCY - Westminster,FOOD STANDARDS AGENCY - Westminster,2016-08-03,EXP - PURCHASE OF GOODS/SERVICES - RAIL TRAVEL,Area 3 North West England - Cluster 31,REDFERN TRAVEL LTD,1011700511,-12.9,TRAVEL FOR WEEK 2016-30,BD1 5HQ,PROGRAMME
FOOD STANDARDS AGENCY - Westminster,FOOD STANDARDS AGENCY - Westminster,2016-08-03,EXP - PURCHASE OF GOODS/SERVICES - SUBSISTENCE,IT Information & Knowledge Management,REDFERN TRAVEL LTD,1011700511,-26.03,TRAVEL FOR WEEK 2016-30,BD1 5HQ,ADMIN
FOOD STANDARDS AGENCY - Westminster,FOOD STANDARDS AGENCY - Westminster,2016-08-03,EXP - PURCHASE OF GOODS/SERVICES - RAIL TRAVEL,Operational Delivery,REDFERN TRAVEL LTD,1011700511,-43,TRAVEL FOR WEEK 2016-30,BD1 5HQ,PROGRAMME
FOOD STANDARDS AGENCY - Westminster,FOOD STANDARDS AGENCY - Westminster,2016-08-03,EXP - PURCHASE OF GOODS/SERVICES - RAIL TRAVEL,Chair & Deputy Chair,REDFERN TRAVEL LTD,1011700511,-98.1,TRAVEL FOR WEEK 2016-30,BD1 5HQ,ADMIN
FOOD STANDARDS AGENCY - Westminster,FOOD STANDARDS AGENCY - Westminster,2016-08-03,EXP - PURCHASE OF GOODS/SERVICES - RAIL TRAVEL,Procurement,REDFERN TRAVEL LTD,1011700511,-147,TRAVEL FOR WEEK 2016-30,BD1 5HQ,ADMIN
FOOD STANDARDS AGENCY - Westminster,FOOD STANDARDS AGENCY - Westminster,2016-08-03,EXP - PURCHASE OF GOODS/SERVICES - RAIL TRAVEL,Area 5 South West England - Cluster 57,REDFERN TRAVEL LTD,1011700511,-257.6,TRAVEL FOR WEEK 2016-30,BD1 5HQ,PROGRAMME
FOOD STANDARDS AGENCY - Westminster,FOOD STANDARDS AGENCY - Westminster,2016-08-03,EXP - PURCHASE OF GOODS/SERVICES - RAIL TRAVEL,Operations Local Delivery ,REDFERN TRAVEL LTD,1011700511,-429.5,TRAVEL FOR WEEK 2016-30,BD1 5HQ,ADMIN
